bitfinex/quotes_SOLUSD_20250417
["timestamp","ask_amount","ask_price","bid_price","bid_amount"]
[1744858719110,98.26105845,131.28,131.23,7.90672645]
[1744858719617,90.64372645,131.28,131.23,7.90672645]
[1744858721022,90.64372645,131.28,131.24,7.61962816]
[1744858722518,7.84372645,131.27,131.23,7.68304013]
[1744858722900,7.84372645,131.26,131.23,0.063]
[1744858723721,7.84372645,131.27,131.23,7.6832084]
[1744858724294,7.84372645,131.27,131.23,0.063]
[1744858725126,7.84372645,131.26,131.23,0.063]
[1744858726421,90.64372645,131.27,131.23,0.063]
[1744858727432,82.8,131.27,131.23,0.063]
[1744858727928,82.8,131.27,131.24,7.84372645]
[1744858728130,82.8,131.27,131.23,7.90672645]
[1744858729623,82.8,131.27,131.24,7.61962816]
[1744858730720,82.8,131.27,131.24,7.84372645]
[1744858731097,82.8,131.27,131.23,7.90672645]
[1744858731301,7.84372645,131.28,131.23,0.063]
[1744858732425,7.84372645,131.28,131.23,7.90672645]
[1744858732827,106.14372645,131.29,131.24,7.84372645]
[1744858733530,7.84372645,131.28,131.23,7.90672645]
[1744858733829,7.84372645,131.28,131.23,0.063]
[1744858734030,7.84372645,131.28,131.23,7.90672645]
[1744858734833,7.84372645,131.28,131.24,7.61962816]
[1744858736827,106.14372645,131.29,131.24,15.46335461]
[1744858739343,106.14372645,131.29,131.24,7.61962816]
[1744858739712,98.3,131.29,131.24,7.61962816]
[1744858740028,7.84372645,131.28,131.24,7.61962816]
[1744858741432,106.14372645,131.29,131.24,7.61962816]
[1744858741636,98.3,131.29,131.24,15.46335461]
[1744858741818,106.14372645,131.29,131.24,15.46335461]
[1744858742634,82.8,131.29,131.26,7.84372645]
[1744858742940,1e-08,131.3,131.27,7.61788679]
[1744858745125,1e-08,131.3,131.27,15.46161324]
[1744858745440,1e-08,131.3,131.29,7.84372645]
[1744858746318,1e-08,131.3,131.29,9.46932645]
[1744858746542,1e-08,131.3,131.29,16.15011116]
[1744858747117,1e-08,131.3,131.29,29.81715008]
[1744858748428,1e-08,131.31,131.3,18.933972]
[1744858748618,1e-08,131.31,131.3,26.77769845]
[1744858750338,0.03,131.36,131.33,0.28432314]
[1744858750642,0.03,131.36,131.35,7.84372645]
[1744858751020,0.03,131.36,131.35,14.43994959]
[1744858752113,0.03,131.36,131.35,14.58211116]
[1744858752319,0.03,131.36,131.35,22.1953582]
[1744858753325,0.03,131.36,131.35,22.05319663]
[1744858759952,0.03,131.36,131.35,66.84500706]
[1744858762853,0.03,131.36,131.35,48.05319663]
[1744858763034,0.03,131.36,131.35,41.74129663]
[1744858763230,0.03,131.36,131.35,41.59913506]
[1744858763662,0.03,131.36,131.35,41.74129663]
[1744858766461,0.03,131.36,131.35,60.53310706]
[1744858768467,0.03,131.36,131.35,41.8834582]
[1744858771561,0.03,131.36,131.35,41.74129663]
[1744858773544,0.03,131.36,131.35,41.45697349]
[1744858773845,0.03,131.36,131.33,33.61419958]
[1744858774057,0.03,131.36,131.3,20.96567639]
[1744858774246,7.87372645,131.36,131.31,7.84372645]
[1744858774450,9.52322645,131.36,131.31,33.84372645]
[1744858775067,9.52322645,131.36,131.3,26.93376757]
[1744858775068,7.84372645,131.35,131.3,7.84372645]
[1744858776167,9.29251231,131.36,131.31,7.84372645]
[1744858776168,99.93623876,131.36,131.31,7.84372645]
[1744858777570,99.93623876,131.36,131.3,7.61603793]
[1744858777771,99.93623876,131.36,131.31,7.84372645]
[1744858778469,99.93623876,131.36,131.31,15.45928065]
[1744858778771,99.93623876,131.36,131.32,7.84372645]
[1744858783263,99.93623876,131.36,131.3,7.61614623]
[1744858783471,99.93623876,131.36,131.32,7.84372645]
[1744858785073,99.93623876,131.36,131.31,15.45915402]
[1744858785366,84.4795,131.36,131.32,7.84372645]
[1744858786761,84.4795,131.36,131.32,15.45867315]
[1744858787772,99.93595033,131.36,131.31,15.45922881]
[1744858792096,99.93595033,131.36,131.31,7.84372645]
[1744858792573,99.93595033,131.36,131.31,15.45924361]
[1744858796460,7.84372645,131.35,131.3,7.61614623]
[1744858796670,6.2778,131.34,131.3,15.45987268]
[1744858800891,82.8,131.35,131.32,7.84372645]
[1744858801601,90.64372645,131.35,131.3,15.45987268]
[1744858802388,82.8,131.35,131.32,7.84372645]
[1744858803401,82.8,131.35,131.33,7.84372645]
[1744858803581,0.03,131.36,131.34,7.84372645]
[1744858803777,0.03,131.36,131.35,7.84372645]
[1744858804483,0.03,131.36,131.35,15.45697349]
[1744858805798,0.03,131.37,131.35,41.8834582]
[1744858805997,0.03,131.37,131.36,8.27021116]
[1744858807493,0.03,131.37,131.36,15.88287863]
[1744858808004,0.03,131.37,131.36,15.74071706]
[1744858808681,0.03,131.37,131.36,8.12804959]
[1744858810100,0.03,131.37,131.36,7.84372645]
[1744858816900,0.03,131.37,131.36,15.45639392]
[1744858819301,0.03,131.37,131.36,15.74071706]
[1744858822808,0.03,131.37,131.36,15.88287863]
[1744858823121,0.03,131.37,131.36,8.03915218]
[1744858823416,0.03,131.37,131.36,15.88287863]
[1744858823631,0.03,131.37,131.36,15.74071706]
[1744858823914,0.03,131.37,131.36,15.45639392]
[1744858827609,0.03,131.42,131.39,26.0]
[1744858827810,0.03,131.42,131.41,7.84372645]
[1744858829023,0.03,131.42,131.41,15.45349739]
[1744858835728,0.03,131.42,131.41,15.73782053]
[1744858836940,0.03,131.42,131.41,7.60977094]
[1744858837227,0.03,131.42,131.41,15.45349739]
[1744858837808,0.03,131.42,131.41,7.60977094]
[1744858838009,0.03,131.42,131.41,15.45349739]
[1744858840134,0.03,131.42,131.41,33.84372645]
[1744858840332,0.03,131.42,131.41,26.0]
[1744858840536,0.03,131.42,131.41,33.84372645]
[1744858841626,0.03,131.42,131.41,41.73782053]
[1744858843835,0.03,131.42,131.39,7.61092929]
[1744858844023,9.38642645,131.42,131.39,7.61092929]
[1744858844418,9.38642645,131.42,131.38,33.61128181]
[1744858845052,1.5427,131.42,131.38,41.45500826]
[1744858845520,9.38642645,131.42,131.38,41.45500826]
[1744858846131,0.03,131.42,131.41,7.84372645]
[1744858846746,0.03,131.42,131.41,33.84372645]
[1744858847249,0.03,131.42,131.41,41.45349739]
[1744858850633,0.03,131.42,131.41,41.73782053]
[1744858852148,0.03,131.42,131.41,41.45349739]
[1744858859662,0.03,131.42,131.41,41.73782053]
[1744858860027,0.03,131.42,131.41,41.45349739]
[1744858862337,0.03,131.42,131.41,41.73782053]
[1744858864052,0.03,131.42,131.41,33.60977094]
[1744858864258,0.03,131.42,131.4,7.61013912]
[1744858864459,0.03,131.42,131.34,7.6138267]
[1744858864460,1.5701,131.4,131.34,7.6138267]
[1744858864661,7.84372645,131.39,131.34,15.45755315]
[1744858864951,7.84372645,131.37,131.33,7.61420359]
[1744858865133,7.84372645,131.37,131.33,15.45793004]
[1744858865332,21.764,131.38,131.35,7.84372645]
[1744858865528,21.764,131.38,131.33,7.61420359]
[1744858865735,21.764,131.38,131.35,7.84372645]
[1744858865957,21.764,131.38,131.34,7.84372645]
[1744858866255,21.764,131.38,131.34,15.45713007]
[1744858866650,21.764,131.38,131.35,7.84372645]
[1744858866955,21.764,131.38,131.34,7.61340362]
[1744858867138,7.84372645,131.36,131.31,0.063]
[1744858867533,7.84372645,131.36,131.32,26.0]
[1744858868049,7.84372645,131.36,131.32,33.6149302]
[1744858868754,7.84372645,131.36,131.32,26.0]
[1744858869459,7.84372645,131.36,131.32,41.45870293]
[1744858869632,7.84372645,131.36,131.32,26.0]
[1744858869838,7.84372645,131.34,131.31,0.063]
[1744858870042,7.84372645,131.33,131.31,0.063]
[1744858870548,7.84372645,131.34,131.31,0.063]
[1744858870852,9.18059198,131.35,131.31,0.063]
[1744858870853,9.41062645,131.35,131.31,0.063]
[1744858871034,7.84372645,131.33,131.31,0.063]
[1744858871834,23.30372645,131.33,131.31,0.063]
[1744858872235,15.46,131.33,131.31,0.063]
[1744858872558,23.30372645,131.33,131.31,0.063]
[1744858878946,7.84372645,131.32,131.31,0.063]
[1744858879142,109.43553688,131.32,131.31,0.063]
[1744858879357,117.33484631,131.32,131.31,0.063]
[1744858879555,34.53484631,131.32,131.31,0.063]
[1744858879771,36.06864631,131.32,131.31,0.063]
[1744858880167,18.64964886,131.29,131.27,0.063]
[1744858880343,23.32372645,131.28,131.27,0.063]
[1744858882967,30.94103297,131.28,131.27,0.063]
[1744858883474,23.32372645,131.28,131.27,0.063]
[1744858884349,30.94103297,131.28,131.27,0.063]
[1744858884557,81.39207234,131.28,131.27,0.063]
[1744858885080,87.76127234,131.28,131.27,0.063]
[1744858885290,6.3692,131.28,131.27,0.063]
[1744858885465,106.12372645,131.29,131.27,0.063]
[1744858885784,141.09476582,131.28,131.27,0.063]
[1744858886184,167.09476582,131.28,131.27,0.063]
[1744858886570,173.60756582,131.28,131.27,0.063]
[1744858887385,181.22487234,131.28,131.27,0.063]
[1744858889263,166.53561753,131.28,131.27,0.063]
[1744858889885,18.79181043,131.27,131.26,0.063]
[1744858890063,31.05649915,131.27,131.26,0.063]
[1744858890872,38.67438594,131.27,131.26,0.063]
[1744858893587,38.95870908,131.27,131.26,0.063]
[1744858895190,38.67438594,131.27,131.26,0.063]
[1744858895397,90.41737311,131.28,131.26,0.063]
[1744858895602,12.26468872,131.27,131.26,0.063]
[1744858895778,95.06468872,131.28,131.26,0.063]
[1744858898507,82.8,131.27,131.26,0.063]
[1744858898884,95.06468872,131.27,131.26,0.063]
[1744858899576,102.68257551,131.27,131.26,0.063]
[1744858899774,121.75870908,131.27,131.26,0.063]
[1744858899983,128.02920908,131.27,131.26,0.063]
[1744858904418,45.22920908,131.27,131.26,0.063]
[1744858905310,45.22920908,131.27,131.26,1e-08]
[1744858905690,18.79181043,131.26,131.25,0.063]
[1744858905887,31.05649915,131.26,131.25,0.063]
[1744858907286,44.79181043,131.24,131.23,0.063]
[1744858907623,44.79181043,131.24,131.18,0.063]
[1744858907624,52.90563357,131.22,131.18,0.063]
[1744858907913,19.07613357,131.21,131.18,0.063]
[1744858908111,31.34082229,131.21,131.18,0.063]
[1744858909791,38.96219261,131.21,131.18,0.063]
[1744858910611,33.62082649,131.22,131.18,0.063]
[1744858910832,12.26468872,131.21,131.18,0.063]
[1744858912425,26.41223525,131.23,131.18,0.063]
[1744858912614,12.26468872,131.22,131.18,1.5958]
[1744858913024,12.26468872,131.21,131.18,1.5958]
[1744858916422,19.88605904,131.21,131.18,1.5958]
[1744858918123,12.26468872,131.21,131.18,1.5958]
[1744858918428,12.26468872,131.22,131.18,1.5958]
[1744858919813,12.26468872,131.21,131.18,1.5958]
[1744858920413,12.26468872,131.21,131.18,0.063]
[1744858921727,19.88605904,131.21,131.18,0.063]
[1744858921927,121.47786947,131.21,131.18,0.063]
[1744858922133,102.68605904,131.21,131.18,0.063]
[1744858923546,121.76219261,131.21,131.18,0.063]
[1744858924329,102.68605904,131.21,131.18,0.063]
[1744858924719,121.76219261,131.21,131.18,0.063]
[1744858924918,147.76219261,131.21,131.18,0.063]
[1744858925122,60.55438323,131.21,131.18,0.063]
[1744858926814,41.47824966,131.21,131.18,0.063]
[1744858927818,15.47824966,131.21,131.18,0.063]
[1744858929142,19.89376332,131.21,131.18,0.063]
[1744858932937,38.68557375,131.21,131.18,0.063]
[1744858933141,38.96989689,131.21,131.18,0.063]
[1744858933359,44.79181043,131.2,131.18,0.063]
[1744858933527,57.06420343,131.2,131.18,0.063]
[1744858934042,57.34852657,131.2,131.18,0.063]
[1744858934351,57.34852657,131.2,131.19,1e-08]
[1744858934537,64.97047778,131.2,131.19,1e-08]
[1744858936851,64.68615464,131.2,131.19,1e-08]
[1744858937227,64.97047778,131.2,131.19,1e-08]
[1744858937426,64.68615464,131.2,131.19,1e-08]
[1744858937627,64.97047778,131.2,131.19,1e-08]
[1744858942751,46.32082892,131.2,131.19,1e-08]
[1744858943069,64.97047778,131.2,131.19,1e-08]
[1744858943363,38.97047778,131.2,131.19,1e-08]
[1744858943862,45.07613357,131.19,131.18,0.043]
[1744858944161,45.07613357,131.17,131.16,0.063]
[1744858944332,19.07613357,131.16,131.12,0.063]
[1744858944537,45.07613357,131.14,131.12,0.063]
[1744858944750,46.84852657,131.13,131.12,0.063]
[1744858945351,54.47454655,131.13,131.12,0.063]
[1744858946366,35.82489769,131.13,131.12,0.063]
[1744858947683,54.47454655,131.13,131.12,0.063]
[1744858947890,27.772393,131.13,131.12,0.063]
[1744858948556,35.39841298,131.13,131.12,0.063]
[1744858952556,15.5,131.13,131.12,0.063]
[1744858953066,27.772393,131.13,131.12,0.063]
[1744858954488,35.39841298,131.13,131.12,0.063]
[1744858954664,15.5,131.13,131.12,0.063]
[1744858959665,27.772393,131.13,131.12,0.063]
[1744858959867,54.19022341,131.13,131.12,0.063]
[1744858960179,54.47454655,131.13,131.12,0.063]
[1744858965597,27.772393,131.13,131.12,0.063]
[1744858966278,15.5,131.13,131.12,0.063]
[1744858966601,280.73787439,131.18,131.12,12.335393]
[1744858966602,34.14964886,131.17,131.12,12.335393]
[1744858966783,15.5,131.17,131.13,13.914093]
[1744858967395,27.772393,131.17,131.13,1.6417]
[1744858969587,35.39618207,131.17,131.13,1.6417]
[1744858970790,27.772393,131.17,131.13,9.26765892]
[1744858971188,27.772393,131.17,131.13,1.6417]
[1744858971495,35.3961341,131.17,131.13,1.6417]
[1744858971685,12.272393,131.14,131.12,0.063]
[1744858972399,12.272393,131.13,131.12,0.063]
[1744858975186,27.772393,131.13,131.12,0.063]
[1744858978280,15.5,131.13,131.12,0.063]
[1744858979997,82.8,131.14,131.12,0.063]
[1744858980619,110.572393,131.16,131.12,0.063]
[1744858980999,118.19670979,131.16,131.12,0.063]
[1744858981316,110.572393,131.16,131.12,0.063]
[1744858982702,98.3,131.16,131.12,12.335393]
[1744858983700,98.3,131.16,131.12,19.96185727]
[1744858987210,98.3,131.16,131.12,15.54725132]
[1744858989813,98.3,131.16,131.13,7.85778705]
[1744858990114,98.3,131.16,131.13,15.48343682]
[1744858990804,98.3,131.16,131.13,7.85778705]
[1744858991004,15.5,131.16,131.14,7.85778705]
[1744858991309,7.88778705,131.19,131.13,7.62594819]
[1744858991310,0.03,131.19,131.15,7.85778705]
[1744858991720,0.03,131.19,131.16,9.40418705]
[1744858991897,0.03,131.19,131.16,17.02809353]
[1744858992503,0.03,131.19,131.17,7.85778705]
[1744858993022,0.03,131.19,131.18,7.85778705]
[1744858994131,0.03,131.19,131.18,15.76522346]
[1744858994426,0.03,131.19,131.18,41.76522346]
[1744858996992,0.03,131.19,131.18,41.48090032]
[1744858997208,0.03,131.19,131.16,1.5464]
[1744858997499,0.03,131.19,131.16,13.81404392]
[1744859001128,0.03,131.19,131.17,12.26764392]
[1744859002144,0.03,131.19,131.16,9.1706123]
[1744859002145,0.03,131.19,131.15,19.8922807]
[1744859002428,98.31,131.19,131.15,12.26764392]
[1744859002837,110.57764392,131.19,131.14,19.89286024]
[1744859003003,118.20061446,131.19,131.14,7.62521632]
[1744859003202,118.20061446,131.19,131.14,19.89286024]
[1744859004113,118.20061446,131.19,131.14,12.26764392]
[1744859004321,12.26764392,131.16,131.12,0.063]
[1744859005238,101.59181043,131.18,131.12,12.33064392]
[1744859005239,12.26764392,131.17,131.12,12.33064392]
[1744859005826,113.85945435,131.18,131.13,12.26764392]
[1744859006437,121.48276698,131.18,131.13,12.26764392]
[1744859006932,121.48276698,131.18,131.13,19.89365431]
[1744859007336,12.26764392,131.17,131.13,7.62601039]
[1744859007509,12.26764392,131.17,131.12,19.95705888]
[1744859007716,12.26764392,131.16,131.12,0.063]
[1744859008739,82.8,131.15,131.12,0.063]
[1744859020540,90.42499415,131.15,131.12,0.063]
[1744859020940,82.8,131.15,131.12,0.063]
[1744859023747,82.8,131.15,131.13,7.8588779]
[1744859024651,15.48,131.16,131.13,7.8588779]
[1744859025744,15.48,131.16,131.13,15.48486264]
[1744859027552,15.48,131.16,131.13,7.8588779]
[1744859027960,15.48,131.16,131.13,15.48485785]
[1744859031658,15.48,131.16,131.14,7.8588779]
[1744859031867,0.03,131.19,131.15,7.8588779]
[1744859032069,0.03,131.19,131.16,7.8588779]
[1744859032662,0.03,131.19,131.17,7.8588779]
[1744859033058,0.03,131.19,131.18,7.8588779]
[1744859034563,0.03,131.19,131.18,15.48199117]
[1744859036760,0.03,131.21,131.2,26.28432314]
[1744859037060,0.03,131.26,131.21,18.64964886]
[1744859037244,0.03,131.26,131.24,33.8588779]
[1744859037950,0.03,131.27,131.25,0.28432314]
[1744859038144,0.03,131.27,131.26,9.4379779]
[1744859038845,0.03,131.27,131.26,17.05644506]
[1744859039043,0.03,131.27,131.25,26.0]
[1744859039360,0.03,131.27,131.25,7.8588779]
[1744859039552,0.03,131.27,131.26,7.8588779]
[1744859042269,0.03,131.27,131.25,7.8588779]
[1744859044153,0.03,131.27,131.26,7.8588779]
[1744859044841,0.03,131.27,131.26,15.47734506]
[1744859045366,0.03,131.27,131.26,7.61846716]
[1744859045565,0.03,131.27,131.26,15.47734506]
[1744859048852,0.03,131.27,131.25,41.47781099]
[1744859049378,0.03,131.27,131.26,7.8588779]
[1744859049966,0.03,131.27,131.26,15.47734506]
[1744859054879,0.03,131.27,131.26,7.8588779]
[1744859055063,0.03,131.27,131.25,15.47771654]
[1744859055665,0.03,131.27,131.21,15.48]
[1744859055865,7.8888779,131.27,131.23,7.8588779]
[1744859056683,0.03,131.27,131.24,7.8588779]
[1744859056888,0.03,131.27,131.22,7.62078951]
[1744859056889,0.03,131.27,131.25,7.8588779]
[1744859057883,0.03,131.27,131.24,15.47812925]
[1744859058075,0.03,131.27,131.24,7.8588779]
[1744859059391,0.03,131.27,131.24,15.47844633]
[1744859059574,0.03,131.27,131.26,7.8588779]
[1744859060188,0.03,131.27,131.26,15.47734506]
[1744859061897,0.03,131.27,131.26,15.7616682]
[1744859062195,1e-08,131.27,131.26,41.90382977]
[1744859062396,0.03,131.29,131.28,26.0]
[1744859062576,0.03,131.29,131.28,65.2943895]
[1744859063390,0.03,131.31,131.28,92.38144703]
[1744859063604,0.03,131.31,131.3,7.8588779]
[1744859063783,0.03,131.31,131.3,8.14320104]
[1744859064675,0.03,131.31,131.28,52.66057282]
[1744859064881,0.03,131.31,131.3,7.8588779]
[1744859066096,0.03,131.31,131.3,15.75934727]
[1744859066591,0.03,131.32,131.31,0.28432314]
[1744859066783,0.03,131.32,131.31,8.14320104]
[1744859067798,0.03,131.32,131.31,7.8588779]
[1744859067982,0.03,131.32,131.27,7.61788679]
[1744859068185,7.8888779,131.32,131.27,15.47676469]
[1744859068405,7.8888779,131.32,131.27,7.61788679]
[1744859068588,9.4096779,131.32,131.27,15.47676469]
[1744859069605,9.4096779,131.32,131.28,7.8588779]
[1744859069901,1.5508,131.32,131.28,7.8588779]
[1744859071281,0.03,131.32,131.3,7.61614623]
[1744859071506,0.03,131.32,131.3,15.47502413]
[1744859072388,0.03,131.32,131.31,7.8588779]
[1744859072881,0.03,131.32,131.31,8.14320104]
[1744859073087,0.03,131.32,131.31,34.14320104]
[1744859074012,1e-08,131.32,131.31,41.75876725]
[1744859074218,1e-08,131.33,131.32,0.28432314]
[1744859074519,1e-08,131.35,131.34,26.28432314]
[1744859074680,1e-08,131.35,131.34,34.28536261]
[1744859075285,1e-08,131.35,131.34,50.88551847]
[1744859076608,1e-08,131.35,131.34,58.49934517]
[1744859077722,1e-08,131.35,131.34,58.07286046]
[1744859079115,1e-08,131.35,131.34,45.84334358]
[1744859080295,1e-08,131.35,131.34,33.6138267]
[1744859080497,1e-08,131.35,131.34,45.84334358]
[1744859081024,1e-08,131.35,131.34,58.49934517]
[1744859081187,1e-08,131.35,131.34,58.3571836]
[1744859081386,1e-08,131.35,131.34,46.12766672]
[1744859081594,1e-08,131.35,131.34,58.3571836]
[1744859083604,1e-08,131.35,131.34,45.84334358]
[1744859085394,1e-08,131.35,131.34,58.3571836]
[1744859087124,1e-08,131.35,131.34,45.84334358]
[1744859087709,1e-08,131.35,131.34,58.3571836]
[1744859087932,1e-08,131.35,131.34,58.49934517]
[1744859089730,0.03,131.4,131.35,0.42648471]
[1744859089932,0.03,131.4,131.37,38.22951688]
[1744859090334,0.03,131.4,131.37,38.51384002]
[1744859090634,1e-08,131.38,131.37,38.65600159]
[1744859091436,1e-08,131.38,131.37,46.26808958]
[1744859097838,1e-08,131.38,131.37,64.91773844]
[1744859098222,0.03,131.43,131.37,64.91773844]
[1744859098223,1.63,131.46,131.41,0.28432314]
[1744859098426,0.03,131.46,131.41,4.29792544]
[1744859098627,0.03,131.46,131.43,12.22951688]
[1744859098830,0.03,131.46,131.41,0.42648471]
[1744859099229,0.03,131.46,131.42,7.6091919]
[1744859101057,6.3476,131.43,131.36,7.61266747]
[1744859101426,6.3476,131.43,131.39,12.22951688]
[1744859101621,6.3476,131.43,131.41,12.22951688]
[1744859102935,0.03,131.44,131.42,12.22951688]
[1744859103242,0.03,131.44,131.43,12.22951688]
[1744859103442,0.03,131.44,131.43,19.83812982]
[1744859105840,1e-08,131.44,131.43,20.26461453]
[1744859106546,1e-08,131.45,131.44,0.14216157]
[1744859106749,1e-08,131.46,131.44,43.53516733]
[1744859106949,1e-08,131.46,131.45,50.60119533]
[1744859107143,1e-08,131.46,131.45,69.53516733]
[1744859107934,1e-08,131.46,131.45,77.14262263]
[1744859108254,0.03,131.49,131.46,0.14216157]
[1744859108563,0.03,131.49,131.48,38.37167845]
[1744859108725,0.03,131.49,131.48,12.22951688]
[1744859108926,0.03,131.49,131.45,33.6074553]
[1744859109145,0.03,131.49,131.47,12.22951688]
[1744859109349,0.03,131.49,131.48,12.22951688]
[1744859110052,0.03,131.49,131.47,12.22951688]
[1744859110433,0.03,131.49,131.45,33.60728465]
[1744859110651,0.03,131.49,131.47,12.22951688]
[1744859111440,0.03,131.49,131.48,12.22951688]
[1744859113954,0.03,131.49,131.48,19.83523638]
[1744859114354,0.03,131.49,131.48,20.11955952]
[1744859115146,0.03,131.49,131.48,19.83523638]
[1744859115535,0.03,131.49,131.48,46.11955952]
[1744859115755,0.03,131.49,131.48,46.26172109]
[1744859116142,0.03,131.52,131.49,0.14216157]
[1744859116460,0.03,131.52,131.51,12.22951688]
[1744859117464,0.03,131.52,131.51,12.51384002]
[1744859118145,0.03,131.52,131.51,19.83350136]
[1744859119560,0.03,131.52,131.51,20.1178245]
[1744859119858,0.03,131.52,131.51,19.83350136]
[1744859120432,0.03,131.52,131.49,7.60514107]
[1744859120658,0.03,131.52,131.49,19.83465795]
[1744859120833,0.03,131.52,131.5,12.22951688]
[1744859121463,0.03,131.52,131.51,7.60398448]
[1744859121648,0.03,131.52,131.51,19.83350136]
[1744859122453,23.5826,131.57,131.51,58.20517981]
[1744859122646,23.5826,131.57,131.56,12.22951688]
[1744859123054,23.5826,131.57,131.55,12.22951688]
[1744859123437,23.5826,131.57,131.55,19.83070611]
[1744859124161,23.5826,131.57,131.54,19.83157289]
[1744859124460,23.5826,131.57,131.51,45.15212278]
[1744859124461,23.5826,131.57,131.53,12.22951688]
[1744859125665,23.5826,131.57,131.54,7.60225026]
[1744859127056,23.5826,131.57,131.55,12.22951688]
[1744859127360,15.8,131.57,131.55,12.22951688]
[1744859128146,15.8,131.57,131.54,12.22951688]
[1744859129260,15.8,131.57,131.54,19.8314218]
[1744859129662,12.22951688,131.55,131.49,19.01194411]
[1744859129848,1.5367,131.55,131.53,12.22951688]
[1744859130169,1.5367,131.55,131.5,7.60456273]
[1744859130465,1.5367,131.55,131.51,12.22951688]
[1744859131366,20.34511688,131.55,131.51,12.22951688]
[1744859131957,110.74686987,131.55,131.51,12.22951688]
[1744859132139,110.74686987,131.55,131.5,7.60456273]
[1744859132349,110.74686987,131.55,131.5,19.83407961]
[1744859133464,98.51735299,131.55,131.51,12.22951688]
[1744859133654,90.9156,131.55,131.51,12.22951688]
[1744859133854,90.9156,131.55,131.53,12.22951688]
[1744859133855,1.5367,131.55,131.53,12.22951688]
[1744859134044,15.8,131.57,131.54,12.22951688]
[1744859134245,15.8,131.57,131.53,12.22951688]
[1744859134658,26.0,131.54,131.53,12.22951688]
[1744859134944,41.8,131.57,131.53,12.22951688]
[1744859135760,15.8,131.57,131.53,19.83203904]
[1744859137872,28.02951688,131.57,131.52,19.83269292]
[1744859138384,12.22951688,131.54,131.47,33.60629801]
[1744859138545,12.22951688,131.54,131.5,12.22951688]
[1744859138750,12.22951688,131.54,131.49,12.22951688]
[1744859138947,18.64964886,131.53,131.47,7.60629801]
[1744859139164,82.8,131.52,131.48,12.22951688]
[1744859139352,82.8,131.52,131.47,7.60629801]
[1744859139552,82.8,131.52,131.49,12.22951688]
[1744859140269,82.8,131.52,131.49,19.83461616]
[1744859140659,82.8,131.52,131.5,12.22951688]
[1744859141876,82.8,131.52,131.49,7.60509928]
[1744859142058,82.8,131.52,131.49,19.83461616]
[1744859142260,90.431,131.52,131.45,26.0]
[1744859142467,7.631,131.56,131.51,12.22951688]
[1744859142656,0.03,131.58,131.55,12.22951688]
[1744859143169,30.90916574,131.58,131.53,12.22951688]
[1744859143470,30.90916574,131.58,131.52,12.22951688]
[1744859143673,30.90916574,131.58,131.54,12.22951688]
[1744859143674,18.67964886,131.58,131.54,12.22951688]
[1744859143974,18.67964886,131.58,131.49,28.01608471]
[1744859143975,0.03,131.58,131.55,12.22951688]
[1744859144269,0.03,131.58,131.56,12.22951688]
[1744859145775,0.03,131.58,131.55,19.830931]
[1744859146546,0.03,131.58,131.56,12.22951688]
[1744859147348,0.03,131.58,131.56,19.83021765]
[1744859148676,0.03,131.58,131.57,12.22951688]
[1744859149855,0.03,131.58,131.56,19.83004421]
[1744859150658,0.03,131.58,131.57,12.22951688]
[1744859151978,0.03,131.58,131.57,19.83003371]
[1744859153179,0.03,131.58,131.57,12.22951688]
[1744859153380,0.03,131.58,131.56,7.60099608]
[1744859153574,0.03,131.58,131.56,19.83051296]
[1744859153957,0.03,131.58,131.55,19.83100267]
[1744859156879,0.03,131.58,131.53,7.60282825]
[1744859157086,82.8,131.57,131.54,12.22951688]
[1744859158272,82.8,131.57,131.53,7.60282825]
[1744859158273,82.8,131.57,131.55,12.22951688]
[1744859159188,82.8,131.57,131.56,12.22951688]
[1744859160497,0.03,131.58,131.56,12.22951688]